[Event "*** SCC Grand Prix: Titled Tuesday Blitz"]
[Site "Chess.com"]
[Date "2020.07.07"]
[Round "8"]
[White "Ural_bogatyr"]
[Black "Sashadav97"]
[Result "1-0"]
[WhiteElo "2361"]
[BlackElo "2514"]
[TimeControl "180+1"]
[EndTime "11:36:03 PDT"]
[Termination "Ural_bogatyr won by resignation"]

1. e4 {[%clk 0:03:00.9]} 1... c5 {[%clk 0:02:59.8]} 2. Nf3 {[%clk 0:03:00.2]}
2... Nc6 {[%clk 0:03:00.3]} 3. d4 {[%clk 0:02:59.2]} 3... cxd4 {[%clk
0:03:01.2]} 4. Nxd4 {[%clk 0:02:59.6]} 4... Nf6 {[%clk 0:03:01.8]} 5. Nc3 {[%clk
0:02:59.1]} 5... d6 {[%clk 0:03:02]} 6. Bg5 {[%clk 0:02:57.3]} 6... e6 {[%clk
0:03:02.3]} 7. Bb5 {[%clk 0:02:56.2]} 7... Bd7 {[%clk 0:03:02]} 8. Bxc6 {[%clk
0:02:56.5]} 8... bxc6 {[%clk 0:03:02.9]} 9. Qf3 {[%clk 0:02:56.6]} 9... Qb6
{[%clk 0:02:49.6]} 10. O-O-O {[%clk 0:02:18.3]} 10... Be7 {[%clk 0:02:48.4]} 11.
Nb3 {[%clk 0:02:10.4]} 11... Qc7 {[%clk 0:02:33.6]} 12. Qd3 {[%clk 0:01:59.6]}
12... O-O {[%clk 0:02:30.9]} 13. e5 {[%clk 0:01:44.7]} 13... dxe5 {[%clk
0:02:08.1]} 14. Bxf6 {[%clk 0:01:43.7]} 14... Bxf6 {[%clk 0:02:09]} 15. Qxd7
{[%clk 0:01:42.9]} 15... Qb6 {[%clk 0:02:09.2]} 16. Ne4 {[%clk 0:01:39.3]} 16...
Bd8 {[%clk 0:02:06.2]} 17. Qd6 {[%clk 0:01:21.3]} 17... a5 {[%clk 0:01:58.1]}
18. Qc5 {[%clk 0:01:17.5]} 18... Qc7 {[%clk 0:01:54]} 19. Qd6 {[%clk 0:01:05.4]}
19... Qc8 {[%clk 0:01:45.5]} 20. Qxe5 {[%clk 0:01:00.4]} 20... a4 {[%clk
0:01:44]} 21. Nbc5 {[%clk 0:00:59.9]} 21... a3 {[%clk 0:01:44.5]} 22. b3 {[%clk
0:00:55.9]} 22... Bc7 {[%clk 0:01:38.8]} 23. Qg5 {[%clk 0:00:53.3]} 23... Kh8
{[%clk 0:01:37.9]} 24. Rd7 {[%clk 0:00:49.2]} 24... Qb8 {[%clk 0:01:37.5]} 25.
g3 {[%clk 0:00:46.9]} 25... Be5 {[%clk 0:01:33.3]} 26. Rhd1 {[%clk 0:00:42.2]}
26... Bb2+ {[%clk 0:01:32.9]} 27. Kb1 {[%clk 0:00:41.7]} 27... h6 {[%clk
0:01:29]} 28. Qf4 {[%clk 0:00:34.9]} 28... Be5 {[%clk 0:01:22.8]} 29. Qd2 {[%clk
0:00:30.4]} 29... Qb5 {[%clk 0:01:17.7]} 30. Qd3 {[%clk 0:00:23.4]} 30... Qa5
{[%clk 0:01:15.1]} 31. f4 {[%clk 0:00:19.6]} 31... Bb2 {[%clk 0:01:14.5]} 32.
Qd2 {[%clk 0:00:16.9]} 32... Qb5 {[%clk 0:01:14.1]} 33. c4 {[%clk 0:00:16.7]}
33... Qb6 {[%clk 0:01:11.3]} 34. Nd3 {[%clk 0:00:15.7]} 34... Bd4 {[%clk
0:01:01.6]} 35. c5 {[%clk 0:00:13.9]} 35... Bxc5 {[%clk 0:00:54.6]} 36. Ndxc5
{[%clk 0:00:13]} 36... Qb5 {[%clk 0:00:53.2]} 37. Qd3 {[%clk 0:00:12.6]} 37...
Qb4 {[%clk 0:00:53.2]} 38. Qc3 {[%clk 0:00:12.6]} 38... Qb5 {[%clk 0:00:52.2]}
39. Qc4 {[%clk 0:00:12.8]} 39... Qb6 {[%clk 0:00:51.1]} 40. Nd6 {[%clk
0:00:11.8]} 40... Kg8 {[%clk 0:00:48.4]} 41. Nxf7 {[%clk 0:00:11.7]} 41... Rxf7
{[%clk 0:00:43.2]} 42. Qxe6 {[%clk 0:00:11.6]} 42... Rf8 {[%clk 0:00:43.7]} 43.
Rxf7 {[%clk 0:00:11.2]} 43... Rxf7 {[%clk 0:00:43.7]} 44. Rd7 {[%clk 0:00:11.8]}
1-0

[Event "*** SCC Grand Prix: Titled Tuesday Blitz"]
[Site "Chess.com"]
[Date "2020.07.07"]
[Round "8"]
[White "Tactictic"]
[Black "ARMQUEEN"]
[Result "0-1"]
[WhiteElo "2291"]
[BlackElo "2425"]
[TimeControl "180+1"]
[EndTime "11:36:04 PDT"]
[Termination "ARMQUEEN won by checkmate"]

1. e4 {[%clk 0:03:00.9]} 1... c5 {[%clk 0:02:59.7]} 2. Nf3 {[%clk 0:03:00.7]}
2... Nc6 {[%clk 0:03:00]} 3. d4 {[%clk 0:03:01.6]} 3... cxd4 {[%clk 0:03:00.9]}
4. Nxd4 {[%clk 0:03:02.3]} 4... g6 {[%clk 0:03:01.4]} 5. c4 {[%clk 0:03:00.3]}
5... Nf6 {[%clk 0:03:01.1]} 6. Nc3 {[%clk 0:03:00.1]} 6... Nxd4 {[%clk
0:03:01.4]} 7. Qxd4 {[%clk 0:02:59.9]} 7... d6 {[%clk 0:02:59.8]} 8. f3 {[%clk
0:02:57.2]} 8... Bg7 {[%clk 0:02:59.9]} 9. Be3 {[%clk 0:02:56.8]} 9... O-O
{[%clk 0:02:59]} 10. Be2 {[%clk 0:02:56.9]} 10... Ng4 {[%clk 0:02:57.5]} 11. Qd2
{[%clk 0:02:56.3]} 11... Nxe3 {[%clk 0:02:57.8]} 12. Qxe3 {[%clk 0:02:57.2]}
12... a5 {[%clk 0:02:53.9]} 13. O-O {[%clk 0:02:56.8]} 13... a4 {[%clk 0:02:54]}
14. Rad1 {[%clk 0:02:50.3]} 14... Qa5 {[%clk 0:02:52.2]} 15. Nd5 {[%clk
0:02:09.8]} 15... Re8 {[%clk 0:02:43.3]} 16. b4 {[%clk 0:02:01.6]} 16... axb3
{[%clk 0:02:42.2]} 17. axb3 {[%clk 0:02:02.5]} 17... Be6 {[%clk 0:02:39.9]} 18.
f4 {[%clk 0:01:50]} 18... Bxd5 {[%clk 0:02:28]} 19. Rxd5 {[%clk 0:01:50.9]}
19... Qa2 {[%clk 0:02:25]} 20. f5 {[%clk 0:01:40.6]} 20... Ra3 {[%clk
0:02:18.7]} 21. Bd1 {[%clk 0:01:39.5]} 21... e6 {[%clk 0:02:13.7]} 22. fxe6
{[%clk 0:01:26.1]} 22... Rxe6 {[%clk 0:02:13]} 23. Qb6 {[%clk 0:01:13.5]} 23...
Ra8 {[%clk 0:02:00.5]} 24. Rxd6 {[%clk 0:01:05.2]} 24... Rxe4 {[%clk 0:01:49]}
25. Qxb7 {[%clk 0:00:58]} 25... Rae8 {[%clk 0:01:23.7]} 26. Qxf7+ {[%clk
0:00:56.8]} 26... Kh8 {[%clk 0:01:23.5]} 27. Rd7 {[%clk 0:00:44.9]} 27... Qb2
{[%clk 0:01:22.3]} 28. Bf3 {[%clk 0:00:42.9]} 28... Re1 {[%clk 0:01:15.2]} 29.
Rd1 {[%clk 0:00:27]} 29... Bd4+ {[%clk 0:01:03.3]} 30. Kh1 {[%clk 0:00:26.8]}
30... Qc3 {[%clk 0:00:42.1]} 31. Rdxe1 {[%clk 0:00:16.6]} 31... Qxe1 {[%clk
0:00:38.7]} 32. Bd5 {[%clk 0:00:13.9]} 32... Qe5 {[%clk 0:00:33.2]} 33. b4
{[%clk 0:00:13.1]} 33... Bc3 {[%clk 0:00:32.1]} 34. b5 {[%clk 0:00:13]} 34...
Bb4 {[%clk 0:00:32.3]} 35. b6 {[%clk 0:00:12.8]} 35... Rf8 {[%clk 0:00:31.8]}
36. Qxf8+ {[%clk 0:00:10.4]} 36... Bxf8 {[%clk 0:00:32.7]} 37. Rxf8+ {[%clk
0:00:10.5]} 37... Kg7 {[%clk 0:00:33.4]} 38. Rf6 {[%clk 0:00:10.1]} 38... Qe1+
{[%clk 0:00:32.6]} 39. Rf1 {[%clk 0:00:06]} 39... Qxf1# {[%clk 0:00:32]} 0-1

[Event "*** SCC Grand Prix: Titled Tuesday Blitz"]
[Site "Chess.com"]
[Date "2020.07.07"]
[Round "8"]
[White "MrChampion_Coach"]
[Black "fridaywins"]
[Result "1-0"]
[WhiteElo "2415"]
[BlackElo "2286"]
[TimeControl "180+1"]
[EndTime "11:36:05 PDT"]
[Termination "MrChampion_Coach won by resignation"]

1. e4 {[%clk 0:02:58.7]} 1... e5 {[%clk 0:02:59.4]} 2. Nc3 {[%clk 0:02:58]} 2...
Nf6 {[%clk 0:02:58.2]} 3. f4 {[%clk 0:02:58.2]} 3... d5 {[%clk 0:02:51.4]} 4.
fxe5 {[%clk 0:02:48.4]} 4... Nxe4 {[%clk 0:02:50.3]} 5. Qf3 {[%clk 0:02:46.4]}
5... Nxc3 {[%clk 0:02:41.6]} 6. dxc3 {[%clk 0:02:43.9]} 6... Be6 {[%clk
0:02:27.4]} 7. Bf4 {[%clk 0:02:39.6]} 7... g5 {[%clk 0:02:15.7]} 8. Bg3 {[%clk
0:02:36.8]} 8... h5 {[%clk 0:02:15.1]} 9. h4 {[%clk 0:02:35.8]} 9... Bg4 {[%clk
0:02:06.6]} 10. Qf2 {[%clk 0:02:29.6]} 10... Nc6 {[%clk 0:01:55.4]} 11. Nf3
{[%clk 0:02:23]} 11... gxh4 {[%clk 0:01:49]} 12. Bxh4 {[%clk 0:02:21.7]} 12...
Be7 {[%clk 0:01:48.6]} 13. Bb5 {[%clk 0:02:16.4]} 13... Bxh4 {[%clk 0:01:38.1]}
14. Rxh4 {[%clk 0:02:01.3]} 14... Bxf3 {[%clk 0:01:27.3]} 15. gxf3 {[%clk
0:02:02.2]} 15... Qe7 {[%clk 0:01:20.2]} 16. O-O-O {[%clk 0:01:56.5]} 16...
O-O-O {[%clk 0:01:08.3]} 17. Bxc6 {[%clk 0:01:42]} 17... bxc6 {[%clk 0:01:08]}
18. e6 {[%clk 0:01:11.5]} 18... fxe6 {[%clk 0:01:04.5]} 19. Ra4 {[%clk
0:01:07.8]} 19... h4 {[%clk 0:00:57.8]} 20. Qxa7 {[%clk 0:00:59.7]} 20... h3
{[%clk 0:00:49.2]} 21. Rc4 {[%clk 0:00:57.1]} 21... Qd6 {[%clk 0:00:44.6]} 22.
Rg4 {[%clk 0:00:50.5]} 22... Qf8 {[%clk 0:00:29.4]} 23. Rc4 {[%clk 0:00:32.5]}
23... Kd7 {[%clk 0:00:28.4]} 24. Qa6 {[%clk 0:00:31.3]} 24... Qd6 {[%clk
0:00:25.9]} 25. Rg4 {[%clk 0:00:27.5]} 25... Rdg8 {[%clk 0:00:25.8]} 26. Rxg8
{[%clk 0:00:21]} 26... Rxg8 {[%clk 0:00:25]} 27. Qd3 {[%clk 0:00:21.4]} 27...
Qf4+ {[%clk 0:00:24.8]} 28. Kb1 {[%clk 0:00:20.9]} 28... h2 {[%clk 0:00:25.7]}
29. Qh7+ {[%clk 0:00:20.8]} 29... Kd6 {[%clk 0:00:23.3]} 30. Qxg8 {[%clk
0:00:21]} 30... Qxf3 {[%clk 0:00:23.7]} 31. Qd8+ {[%clk 0:00:17.9]} 31... Ke5
{[%clk 0:00:20.8]} 32. Re1+ {[%clk 0:00:15.6]} 32... Kf4 {[%clk 0:00:15.4]} 33.
Qh4+ {[%clk 0:00:12.7]} 33... Kf5 {[%clk 0:00:13.8]} 34. Qh7+ {[%clk 0:00:12.2]}
1-0

[Event "*** SCC Grand Prix: Titled Tuesday Blitz"]
[Site "Chess.com"]
[Date "2020.07.07"]
[Round "8"]
[White "Grischuk"]
[Black "Infernal_XaM"]
[Result "1/2-1/2"]
[WhiteElo "3060"]
[BlackElo "2956"]
[TimeControl "180+1"]
[EndTime "11:36:07 PDT"]
[Termination "Game drawn by agreement"]

1. Nf3 {[%clk 0:03:00.9]} 1... Nf6 {[%clk 0:03:00]} 2. d4 {[%clk 0:03:00.3]}
2... e6 {[%clk 0:02:59.8]} 3. c4 {[%clk 0:03:00.2]} 3... c5 {[%clk 0:02:59.9]}
4. d5 {[%clk 0:02:59.6]} 4... exd5 {[%clk 0:03:00.5]} 5. cxd5 {[%clk 0:03:00.5]}
5... d6 {[%clk 0:03:00.6]} 6. e4 {[%clk 0:02:59.1]} 6... g6 {[%clk 0:03:00.2]}
7. h3 {[%clk 0:02:53.2]} 7... Bg7 {[%clk 0:03:00]} 8. Nc3 {[%clk 0:02:53.4]}
8... O-O {[%clk 0:03:00.3]} 9. Bd3 {[%clk 0:02:54]} 9... b5 {[%clk 0:03:00.6]}
10. Bxb5 {[%clk 0:02:45.6]} 10... Nxe4 {[%clk 0:02:56.9]} 11. Nxe4 {[%clk
0:02:46.5]} 11... Qa5+ {[%clk 0:02:57]} 12. Nfd2 {[%clk 0:02:47.2]} 12... Qxb5
{[%clk 0:02:57.5]} 13. Nxd6 {[%clk 0:02:47.9]} 13... Qa6 {[%clk 0:02:58.1]} 14.
N2c4 {[%clk 0:02:48]} 14... Nd7 {[%clk 0:02:57.1]} 15. O-O {[%clk 0:02:47.9]}
15... Ne5 {[%clk 0:02:57.7]} 16. Nxc8 {[%clk 0:02:33.5]} 16... Raxc8 {[%clk
0:02:49.3]} 17. Nxe5 {[%clk 0:02:15.4]} 17... Bxe5 {[%clk 0:02:48.5]} 18. Qf3
{[%clk 0:02:10.7]} 18... Rfe8 {[%clk 0:02:33.1]} 19. Rd1 {[%clk 0:01:56.7]}
19... Bd4 {[%clk 0:02:19.7]} 20. Be3 {[%clk 0:01:52.4]} 20... Bxb2 {[%clk
0:02:10.5]} 21. Rab1 {[%clk 0:01:52]} 21... Qf6 {[%clk 0:01:54]} 22. Qxf6 {[%clk
0:01:35.1]} 22... Bxf6 {[%clk 0:01:53.7]} 23. d6 {[%clk 0:01:21.6]} 23... Red8
{[%clk 0:01:53.3]} 24. Rd5 {[%clk 0:01:03.1]} 24... c4 {[%clk 0:01:38.3]} 25.
Bxa7 {[%clk 0:01:02.3]} 25... c3 {[%clk 0:01:38.8]} 26. Bc5 {[%clk 0:00:46.3]}
26... Ra8 {[%clk 0:01:00]} 27. a3 {[%clk 0:00:22.4]} 27... Ra5 {[%clk
0:00:58.6]} 28. d7 {[%clk 0:00:11.6]} 28... c2 {[%clk 0:00:14.2]} 29. Rc1 {[%clk
0:00:11.7]} 29... Bb2 {[%clk 0:00:14.2]} 30. Rxc2 {[%clk 0:00:10]} 30... Bxa3
{[%clk 0:00:14.8]} 31. g3 {[%clk 0:00:04.8]} 31... Rxc5 {[%clk 0:00:12.7]} 32.
Rdxc5 {[%clk 0:00:05.7]} 32... Bxc5 {[%clk 0:00:12.9]} 33. Rxc5 {[%clk
0:00:06.6]} 33... Rxd7 {[%clk 0:00:13.3]} 34. Kg2 {[%clk 0:00:07.5]} 1/2-1/2

[Event "*** SCC Grand Prix: Titled Tuesday Blitz"]
[Site "Chess.com"]
[Date "2020.07.07"]
[Round "8"]
[White "Zurability"]
[Black "ElviraBerend"]
[Result "1-0"]
[WhiteElo "2589"]
[BlackElo "2426"]
[TimeControl "180+1"]
[EndTime "11:36:07 PDT"]
[Termination "Zurability won by resignation"]

1. d4 {[%clk 0:03:00.9]} 1... Nf6 {[%clk 0:02:56.9]} 2. c4 {[%clk 0:02:56.8]}
2... c5 {[%clk 0:02:56]} 3. d5 {[%clk 0:02:56.8]} 3... b5 {[%clk 0:02:55.6]} 4.
cxb5 {[%clk 0:02:56.8]} 4... a6 {[%clk 0:02:55.3]} 5. b6 {[%clk 0:02:57]} 5...
g6 {[%clk 0:02:52.7]} 6. Nc3 {[%clk 0:02:56.9]} 6... Bg7 {[%clk 0:02:52.6]} 7.
e4 {[%clk 0:02:57.3]} 7... d6 {[%clk 0:02:51.8]} 8. Nf3 {[%clk 0:02:57.8]} 8...
Nbd7 {[%clk 0:02:51.6]} 9. Nd2 {[%clk 0:02:48.9]} 9... Nxb6 {[%clk 0:02:49.1]}
10. Be2 {[%clk 0:02:48.9]} 10... O-O {[%clk 0:02:48.3]} 11. O-O {[%clk 0:02:49]}
11... Rb8 {[%clk 0:02:40.6]} 12. Re1 {[%clk 0:02:48.1]} 12... Nfd7 {[%clk
0:02:39.2]} 13. a4 {[%clk 0:02:44.7]} 13... a5 {[%clk 0:02:34.3]} 14. Bb5 {[%clk
0:02:44.7]} 14... Ne5 {[%clk 0:02:28.8]} 15. h3 {[%clk 0:02:41.1]} 15... c4
{[%clk 0:02:27.5]} 16. Rf1 {[%clk 0:02:27.3]} 16... Qc7 {[%clk 0:02:24.6]} 17.
Qe2 {[%clk 0:02:04.7]} 17... Bd7 {[%clk 0:02:04.8]} 18. Ra2 {[%clk 0:01:26.5]}
18... Rfc8 {[%clk 0:01:40.8]} 19. Ndb1 {[%clk 0:01:00.9]} 19... Nd3 {[%clk
0:01:35.1]} 20. Be3 {[%clk 0:01:00.4]} 20... e6 {[%clk 0:01:21.2]} 21. Na3
{[%clk 0:00:49.8]} 21... Bxc3 {[%clk 0:00:59.7]} 22. bxc3 {[%clk 0:00:43.4]}
22... exd5 {[%clk 0:00:59.4]} 23. exd5 {[%clk 0:00:34]} 23... Nxd5 {[%clk
0:00:58.4]} 24. Bd4 {[%clk 0:00:33.2]} 24... Re8 {[%clk 0:00:52.7]} 25. Qf3
{[%clk 0:00:28.6]} 25... Qb7 {[%clk 0:00:35.2]} 26. Bxd7 {[%clk 0:00:25.3]}
26... Qxd7 {[%clk 0:00:33]} 27. Qxd5 {[%clk 0:00:25.2]} 27... Ne5 {[%clk
0:00:29.4]} 28. Nb5 {[%clk 0:00:19.5]} 28... Re6 {[%clk 0:00:25.1]} 29. Nxd6
{[%clk 0:00:17.7]} 29... Nc6 {[%clk 0:00:19.1]} 30. Bc5 {[%clk 0:00:17.8]} 30...
Rd8 {[%clk 0:00:16.7]} 31. Rd2 {[%clk 0:00:17.7]} 31... Re5 {[%clk 0:00:15.5]}
32. Qxc4 {[%clk 0:00:16.8]} 32... Ne7 {[%clk 0:00:12.1]} 33. Qxf7+ {[%clk
0:00:14.1]} 33... Kh8 {[%clk 0:00:10.2]} 34. Qf6+ {[%clk 0:00:13.5]} 34... Kg8
{[%clk 0:00:08.9]} 35. Qxe5 {[%clk 0:00:12.1]} 1-0

[Event "*** SCC Grand Prix: Titled Tuesday Blitz"]
[Site "Chess.com"]
[Date "2020.07.07"]
[Round "8"]
[White "GustavoJuarezF"]
[Black "CzechmVIII"]
[Result "0-1"]
[WhiteElo "1997"]
[BlackElo "2186"]
[TimeControl "180+1"]
[EndTime "11:36:07 PDT"]
[Termination "CzechmVIII won on time"]

1. e4 {[%clk 0:03:00.9]} 1... c5 {[%clk 0:03:00]} 2. Nf3 {[%clk 0:02:57.5]} 2...
d6 {[%clk 0:03:00.2]} 3. d4 {[%clk 0:02:56.5]} 3... cxd4 {[%clk 0:03:00.6]} 4.
Nxd4 {[%clk 0:02:56.7]} 4... Nf6 {[%clk 0:03:00.9]} 5. f3 {[%clk 0:02:56.8]}
5... e5 {[%clk 0:02:59.6]} 6. Nb3 {[%clk 0:02:55.8]} 6... d5 {[%clk 0:02:59.4]}
7. Bg5 {[%clk 0:02:42.7]} 7... d4 {[%clk 0:02:59.3]} 8. Bc4 {[%clk 0:02:31.8]}
8... Nc6 {[%clk 0:02:43]} 9. O-O {[%clk 0:02:29.2]} 9... Be7 {[%clk 0:02:39.1]}
10. c3 {[%clk 0:02:25.8]} 10... O-O {[%clk 0:02:30.3]} 11. cxd4 {[%clk
0:02:24.2]} 11... exd4 {[%clk 0:02:21.9]} 12. N1d2 {[%clk 0:02:08]} 12... Ne5
{[%clk 0:01:38.5]} 13. Kh1 {[%clk 0:01:42.1]} 13... Nxc4 {[%clk 0:01:29.6]} 14.
Nxc4 {[%clk 0:01:41.3]} 14... Be6 {[%clk 0:01:29.6]} 15. Ne5 {[%clk 0:01:39.5]}
15... h6 {[%clk 0:01:18]} 16. Bh4 {[%clk 0:01:36.9]} 16... Nh5 {[%clk
0:01:08.5]} 17. Bxe7 {[%clk 0:01:32.5]} 17... Qxe7 {[%clk 0:01:08.7]} 18. Qxd4
{[%clk 0:01:16.3]} 18... Rfd8 {[%clk 0:00:58.1]} 19. Qc5 {[%clk 0:01:12.6]}
19... Qf6 {[%clk 0:00:40.7]} 20. Ng4 {[%clk 0:00:53]} 20... Qh4 {[%clk
0:00:33.3]} 21. Qf2 {[%clk 0:00:26.1]} 21... Qg5 {[%clk 0:00:33.5]} 22. Ne3
{[%clk 0:00:21.4]} 22... Nf4 {[%clk 0:00:26]} 23. Rad1 {[%clk 0:00:17.1]} 23...
Rac8 {[%clk 0:00:22.3]} 24. Rxd8+ {[%clk 0:00:13.8]} 24... Rxd8 {[%clk
0:00:21.9]} 25. Nc5 {[%clk 0:00:13.5]} 25... Qxc5 {[%clk 0:00:19.1]} 26. Rd1
{[%clk 0:00:08.5]} 26... Rxd1+ {[%clk 0:00:18.8]} 27. Nxd1 {[%clk 0:00:08]}
27... Qxf2 {[%clk 0:00:18.9]} 28. Nxf2 {[%clk 0:00:07.8]} 28... Bxa2 {[%clk
0:00:19.6]} 29. g3 {[%clk 0:00:07.4]} 29... Ne6 {[%clk 0:00:19.8]} 30. f4 {[%clk
0:00:06.5]} 30... Bb1 {[%clk 0:00:18.8]} 31. e5 {[%clk 0:00:05.8]} 31... Nc5
{[%clk 0:00:19]} 32. b4 {[%clk 0:00:04.1]} 32... Nd3 {[%clk 0:00:17.9]} 33. Nxd3
{[%clk 0:00:01.3]} 33... Bxd3 {[%clk 0:00:18.8]} 34. Kg2 {[%clk 0:00:01.5]}
34... Kf8 {[%clk 0:00:18.2]} 35. Kf3 {[%clk 0:00:02]} 35... Ke7 {[%clk
0:00:18.8]} 36. Ke3 {[%clk 0:00:02.2]} 36... Bf1 {[%clk 0:00:19]} 37. Kd4 {[%clk
0:00:01.2]} 37... Kd7 {[%clk 0:00:19.1]} 0-1

[Event "*** SCC Grand Prix: Titled Tuesday Blitz"]
[Site "Chess.com"]
[Date "2020.07.07"]
[Round "8"]
[White "Sanan_Sjugirov"]
[Black "amintabatabaei"]
[Result "0-1"]
[WhiteElo "2830"]
[BlackElo "2942"]
[TimeControl "180+1"]
[EndTime "11:36:09 PDT"]
[Termination "amintabatabaei won on time"]

1. e4 {[%clk 0:03:00.9]} 1... c5 {[%clk 0:02:59.3]} 2. Nf3 {[%clk 0:03:00.6]}
2... Nc6 {[%clk 0:02:56]} 3. Bb5 {[%clk 0:02:59.3]} 3... e6 {[%clk 0:02:56.1]}
4. O-O {[%clk 0:02:58.5]} 4... Nge7 {[%clk 0:02:55.6]} 5. c3 {[%clk 0:02:57.4]}
5... a6 {[%clk 0:02:52.4]} 6. Bxc6 {[%clk 0:02:57.3]} 6... Nxc6 {[%clk
0:02:53.3]} 7. d4 {[%clk 0:02:57.5]} 7... d5 {[%clk 0:02:45.2]} 8. Bg5 {[%clk
0:02:56.1]} 8... f6 {[%clk 0:02:35.9]} 9. exd5 {[%clk 0:02:53.7]} 9... Qxd5
{[%clk 0:02:35]} 10. Be3 {[%clk 0:02:52.8]} 10... c4 {[%clk 0:02:25.1]} 11. Nbd2
{[%clk 0:02:37.9]} 11... Bd6 {[%clk 0:02:23.2]} 12. b3 {[%clk 0:02:34.2]} 12...
Na5 {[%clk 0:02:14.7]} 13. bxc4 {[%clk 0:02:20.4]} 13... Nxc4 {[%clk 0:02:15.3]}
14. Nxc4 {[%clk 0:02:21]} 14... Qxc4 {[%clk 0:02:15.1]} 15. Nd2 {[%clk
0:02:21.7]} 15... Qc7 {[%clk 0:02:10.8]} 16. Qh5+ {[%clk 0:02:10.9]} 16... Qf7
{[%clk 0:02:07.2]} 17. Qh4 {[%clk 0:02:03.9]} 17... O-O {[%clk 0:02:06.1]} 18.
c4 {[%clk 0:02:02.1]} 18... b5 {[%clk 0:02:04.2]} 19. a4 {[%clk 0:01:11.3]}
19... Bb7 {[%clk 0:01:37.8]} 20. axb5 {[%clk 0:00:56.9]} 20... axb5 {[%clk
0:01:38]} 21. cxb5 {[%clk 0:00:56.6]} 21... Qg6 {[%clk 0:01:35.4]} 22. Qh3
{[%clk 0:00:53.7]} 22... Bd5 {[%clk 0:01:35.5]} 23. Rab1 {[%clk 0:00:22]} 23...
f5 {[%clk 0:01:26.1]} 24. f3 {[%clk 0:00:12.4]} 24... Ra2 {[%clk 0:01:18.2]} 25.
Rbd1 {[%clk 0:00:06.6]} 25... Rb8 {[%clk 0:01:12.6]} 26. Nb1 {[%clk 0:00:02.7]}
26... Rc8 {[%clk 0:00:45.1]} 27. Bf2 {[%clk 0:00:02.7]} 27... Rcc2 {[%clk
0:00:43.4]} 28. b6 {[%clk 0:00:02.8]} 28... Rab2 {[%clk 0:00:43]} 29. b7 {[%clk
0:00:02.4]} 29... Rxb7 {[%clk 0:00:41.3]} 30. Rd2 {[%clk 0:00:02.9]} 30... Rbb2
{[%clk 0:00:33.9]} 31. Rxc2 {[%clk 0:00:03.1]} 31... Rxc2 {[%clk 0:00:34.8]} 32.
Bg3 {[%clk 0:00:03.4]} 32... f4 {[%clk 0:00:34.7]} 33. Bf2 {[%clk 0:00:03.8]}
33... h6 {[%clk 0:00:34.6]} 34. Re1 {[%clk 0:00:03]} 34... Bb4 {[%clk
0:00:31.3]} 35. Rd1 {[%clk 0:00:03.1]} 35... Rb2 {[%clk 0:00:29]} 0-1

[Event "*** SCC Grand Prix: Titled Tuesday Blitz"]
[Site "Chess.com"]
[Date "2020.07.07"]
[Round "8"]
[White "kushagramohan"]
[Black "szachuspl"]
[Result "1-0"]
[WhiteElo "2697"]
[BlackElo "2496"]
[TimeControl "180+1"]
[EndTime "11:36:12 PDT"]
[Termination "kushagramohan won by resignation"]

1. e4 {[%clk 0:03:00.9]} 1... c5 {[%clk 0:02:58.9]} 2. Nf3 {[%clk 0:03:01.3]}
2... e6 {[%clk 0:02:59]} 3. d4 {[%clk 0:03:02]} 3... cxd4 {[%clk 0:02:59.5]} 4.
Nxd4 {[%clk 0:03:02.9]} 4... Nc6 {[%clk 0:03:00.1]} 5. Nc3 {[%clk 0:03:02.5]}
5... a6 {[%clk 0:03:00.4]} 6. Nxc6 {[%clk 0:03:01.7]} 6... bxc6 {[%clk
0:03:00.4]} 7. Bd3 {[%clk 0:03:02.6]} 7... d5 {[%clk 0:03:00.6]} 8. O-O {[%clk
0:03:03.2]} 8... Nf6 {[%clk 0:03:00.7]} 9. e5 {[%clk 0:03:03.8]} 9... Nd7 {[%clk
0:03:00.9]} 10. Re1 {[%clk 0:03:04.5]} 10... c5 {[%clk 0:02:58]} 11. Bf4 {[%clk
0:03:04.4]} 11... Be7 {[%clk 0:02:57]} 12. Na4 {[%clk 0:03:04]} 12... O-O {[%clk
0:02:45.4]} 13. c4 {[%clk 0:03:03.9]} 13... Bb7 {[%clk 0:02:44.4]} 14. Re3
{[%clk 0:03:03.6]} 14... g6 {[%clk 0:02:20.4]} 15. Rh3 {[%clk 0:02:53.9]} 15...
Bg5 {[%clk 0:02:17.6]} 16. Qg4 {[%clk 0:02:51.4]} 16... Bxf4 {[%clk 0:02:17.2]}
17. Qxf4 {[%clk 0:02:52.3]} 17... f5 {[%clk 0:02:02.4]} 18. cxd5 {[%clk
0:02:37.5]} 18... Bxd5 {[%clk 0:02:00.6]} 19. Rc1 {[%clk 0:02:37.7]} 19... Qc7
{[%clk 0:01:40.9]} 20. Re3 {[%clk 0:02:35.6]} 20... Rab8 {[%clk 0:01:34.2]} 21.
b3 {[%clk 0:02:33]} 21... Rfc8 {[%clk 0:01:30.5]} 22. Bxa6 {[%clk 0:02:30.3]}
22... Rb4 {[%clk 0:01:29]} 23. Qh6 {[%clk 0:02:22.6]} 23... Ra8 {[%clk
0:01:26.8]} 24. Be2 {[%clk 0:02:15.4]} 24... Nxe5 {[%clk 0:01:25.4]} 25. Rxc5
{[%clk 0:02:11.7]} 25... Qd6 {[%clk 0:01:14.6]} 26. Rh3 {[%clk 0:01:55.3]} 26...
Qe7 {[%clk 0:01:11.3]} 27. Qe3 {[%clk 0:01:49.3]} 27... Qg7 {[%clk 0:00:57.9]}
28. Qc3 {[%clk 0:01:40.4]} 28... Re4 {[%clk 0:00:49.1]} 29. Bf1 {[%clk 0:01:33]}
29... Rf8 {[%clk 0:00:45.7]} 30. Nb6 {[%clk 0:01:28.7]} 30... h5 {[%clk
0:00:34.4]} 31. Nxd5 {[%clk 0:01:18.8]} 31... exd5 {[%clk 0:00:32.5]} 32. Rxd5
{[%clk 0:01:19]} 32... Nf7 {[%clk 0:00:26.1]} 33. Qxg7+ {[%clk 0:01:18.2]} 33...
Kxg7 {[%clk 0:00:27]} 34. Rhd3 {[%clk 0:01:15.9]} 34... Rc8 {[%clk 0:00:25.8]}
35. Rd1 {[%clk 0:01:14.4]} 35... Re7 {[%clk 0:00:20.2]} 36. R5d2 {[%clk
0:01:14.1]} 36... Ne5 {[%clk 0:00:20]} 37. f4 {[%clk 0:01:12.8]} 37... Ng4
{[%clk 0:00:19.7]} 38. h3 {[%clk 0:01:11.8]} 38... Nf6 {[%clk 0:00:18.5]} 39. a4
{[%clk 0:01:07.5]} 39... Re3 {[%clk 0:00:18.3]} 40. Bc4 {[%clk 0:01:06]} 40...
Re4 {[%clk 0:00:17.3]} 41. a5 {[%clk 0:01:05.6]} 41... Rxf4 {[%clk 0:00:16.8]}
42. a6 {[%clk 0:01:06]} 42... Ra8 {[%clk 0:00:16.8]} 43. Rd8 {[%clk 0:01:05.5]}
43... Ra7 {[%clk 0:00:16.1]} 44. Rb8 {[%clk 0:01:02.5]} 44... Re4 {[%clk
0:00:15.7]} 45. Rb7+ {[%clk 0:01:01.4]} 45... Re7 {[%clk 0:00:16.2]} 46. Rxe7+
{[%clk 0:01:01.2]} 46... Rxe7 {[%clk 0:00:17.1]} 47. b4 {[%clk 0:01:02]} 47...
Ne4 {[%clk 0:00:16.7]} 48. b5 {[%clk 0:01:01.3]} 48... Nc3 {[%clk 0:00:17.1]}
49. Rc1 {[%clk 0:00:55]} 49... Na4 {[%clk 0:00:16]} 50. Bf1 {[%clk 0:00:52.9]}
50... Kf6 {[%clk 0:00:13.1]} 51. Rc6+ {[%clk 0:00:52.7]} 51... Ke5 {[%clk
0:00:13.2]} 52. b6 {[%clk 0:00:52.7]} 1-0